[Event "Live Chess"]
[Site "Chess.com"]
[Date "2024.06.01"]
[Round "-"]
[White "MagnersCarlsberg2870"]
[Black "LL220284LL"]
[Result "0-1"]
[WhiteElo "1881"]
[BlackElo "2581"]
[TimeControl "300"]
[EndTime "9:45:44 PDT"]
[Termination "LL220284LL won by checkmate"]

1. Nf3 {[%clk 0:04:57]} 1... b6 {[%clk 0:04:59.9]} 2. g3 {[%clk 0:04:54.6]} 2...
Bb7 {[%clk 0:04:59.3]} 3. Bg2 {[%clk 0:04:53.8]} 3... g6 {[%clk 0:04:58.7]} 4.
O-O {[%clk 0:04:52.9]} 4... Bg7 {[%clk 0:04:57.4]} 5. d4 {[%clk 0:04:52]} 5...
e6 {[%clk 0:04:56.4]} 6. c3 {[%clk 0:04:51.1]} 6... Ne7 {[%clk 0:04:54.9]} 7.
Bg5 {[%clk 0:04:49.6]} 7... h6 {[%clk 0:04:53.2]} 8. Bf4 {[%clk 0:04:47.1]} 8...
d6 {[%clk 0:04:52.1]} 9. Qd2 {[%clk 0:04:45.8]} 9... g5 {[%clk 0:04:51]} 10. Be3
{[%clk 0:04:44.2]} 10... Nf5 {[%clk 0:04:50.3]} 11. Na3 {[%clk 0:04:30.1]} 11...
O-O {[%clk 0:04:42.2]} 12. Bxg5 {[%clk 0:04:23.1]} 12... hxg5 {[%clk 0:04:39]}
13. Nxg5 {[%clk 0:04:22.4]} 13... Bxg2 {[%clk 0:04:38.7]} 14. Kxg2 {[%clk
0:04:21.4]} 14... Bh6 {[%clk 0:04:36.1]} 15. h4 {[%clk 0:04:17.9]} 15... f6
{[%clk 0:04:31.3]} 16. f4 {[%clk 0:04:08.6]} 16... Ng7 {[%clk 0:04:28.2]} 17.
Nf3 {[%clk 0:03:52.6]} 17... f5 {[%clk 0:04:25.3]} 18. c4 {[%clk 0:03:43.8]}
18... Nd7 {[%clk 0:04:23.6]} 19. Qc2 {[%clk 0:03:40]} 19... Nf6 {[%clk
0:04:22.2]} 20. Nb1 {[%clk 0:03:36.3]} 20... Qe8 {[%clk 0:04:21.1]} 21. Nbd2
{[%clk 0:03:35.3]} 21... Qh5 {[%clk 0:04:14.9]} 22. Rf2 {[%clk 0:03:26.7]} 22...
Ng4 {[%clk 0:04:13.5]} 23. Nf1 {[%clk 0:03:22.2]} 23... Nxf2 {[%clk 0:04:12.2]}
24. Kxf2 {[%clk 0:03:21.4]} 24... Rae8 {[%clk 0:04:10.6]} 25. e4 {[%clk
0:03:15.1]} 25... fxe4 {[%clk 0:04:08.8]} 26. Qxe4 {[%clk 0:03:14.3]} 26... Qf5
{[%clk 0:04:06.9]} 27. Qb7 {[%clk 0:03:06.3]} 27... e5 {[%clk 0:04:04.5]} 28.
Ne3 {[%clk 0:03:03.1]} 28... Qf7 {[%clk 0:04:01.4]} 29. g4 {[%clk 0:02:56.7]}
29... Bxf4 {[%clk 0:03:57.3]} 30. Nf5 {[%clk 0:02:53.4]} 30... Nxf5 {[%clk
0:03:55.1]} 31. gxf5 {[%clk 0:02:52.1]} 31... Qxf5 {[%clk 0:03:49.6]} 32. Rg1+
{[%clk 0:02:50.8]} 32... Kh8 {[%clk 0:03:48.7]} 33. Qxc7 {[%clk 0:02:47.9]}
33... Be3+ {[%clk 0:03:47.5]} 34. Ke1 {[%clk 0:02:45.6]} 34... Bxg1 {[%clk
0:03:45.9]} 35. Ng5 {[%clk 0:02:37.1]} 35... Qf1+ {[%clk 0:03:43.8]} 36. Kd2
{[%clk 0:02:35.9]} 36... Qf4+ {[%clk 0:03:34]} 37. Kc3 {[%clk 0:02:34.7]} 37...
Bxd4+ {[%clk 0:03:30.9]} 38. Kb3 {[%clk 0:02:30.3]} 38... Qf5 {[%clk 0:03:25.2]}
39. Qxd6 {[%clk 0:02:18.3]} 39... Qd3+ {[%clk 0:03:22.4]} 40. Ka4 {[%clk
0:02:16.5]} 40... Qxc4+ {[%clk 0:03:19.8]} 41. b4 {[%clk 0:02:15.8]} 41... Qxa2+
{[%clk 0:03:04.7]} 42. Kb5 {[%clk 0:02:14.8]} 42... a6+ {[%clk 0:03:01.4]} 43.
Kc6 {[%clk 0:02:13.3]} 43... Qc4+ {[%clk 0:02:58]} 44. Kb7 {[%clk 0:02:07.6]}
44... Qc8+ {[%clk 0:02:57]} 45. Ka7 {[%clk 0:02:06]} 45... Qa8# {[%clk
0:02:56.9]} 0-1

[Event "Live Chess"]
[Site "Chess.com"]
[Date "2024.06.01"]
[Round "-"]
[White "elephantgerrald"]
[Black "14141409"]
[Result "0-1"]
[WhiteElo "713"]
[BlackElo "2561"]
[TimeControl "300"]
[EndTime "9:45:55 PDT"]
[Termination "14141409 won by checkmate"]

1. e4 {[%clk 0:04:59.4]} 1... e5 {[%clk 0:04:57.9]} 2. Nf3 {[%clk 0:04:58.4]}
2... Nf6 {[%clk 0:04:57]} 3. Nc3 {[%clk 0:04:56.8]} 3... Nc6 {[%clk 0:04:55.4]}
4. g3 {[%clk 0:04:55.9]} 4... Bc5 {[%clk 0:04:53.6]} 5. Bg2 {[%clk 0:04:54.9]}
5... O-O {[%clk 0:04:51.7]} 6. O-O {[%clk 0:04:54.4]} 6... a6 {[%clk 0:04:49.7]}
7. d3 {[%clk 0:04:54.3]} 7... h6 {[%clk 0:04:47.1]} 8. a3 {[%clk 0:04:52.2]}
8... d6 {[%clk 0:04:46.3]} 9. b4 {[%clk 0:04:50.6]} 9... Ba7 {[%clk 0:04:45.3]}
10. Re1 {[%clk 0:04:47.8]} 10... Bg4 {[%clk 0:04:42.8]} 11. Be3 {[%clk
0:04:42.5]} 11... Nd4 {[%clk 0:04:39.5]} 12. Bxd4 {[%clk 0:04:34]} 12... Bxd4
{[%clk 0:04:37.3]} 13. Qd2 {[%clk 0:04:28]} 13... c5 {[%clk 0:04:25.4]} 14. Nxd4
{[%clk 0:04:23.6]} 14... cxd4 {[%clk 0:04:22.9]} 15. Nd5 {[%clk 0:04:22.4]}
15... Nxd5 {[%clk 0:04:19.8]} 16. exd5 {[%clk 0:04:21.1]} 16... Rc8 {[%clk
0:04:18.3]} 17. Rac1 {[%clk 0:04:01]} 17... Rc3 {[%clk 0:04:10.9]} 18. h3 {[%clk
0:03:55.7]} 18... Bf5 {[%clk 0:04:07.2]} 19. Re3 {[%clk 0:03:49.1]} 19... Rxa3
{[%clk 0:04:02.9]} 20. g4 {[%clk 0:03:41.8]} 20... dxe3 {[%clk 0:04:01.1]} 21.
Qxe3 {[%clk 0:03:26.5]} 21... Bd7 {[%clk 0:03:58.3]} 22. Kh2 {[%clk 0:02:57.1]}
22... Rc3 {[%clk 0:03:55.6]} 23. Be4 {[%clk 0:02:54.7]} 23... Qg5 {[%clk
0:03:48.9]} 24. Qf3 {[%clk 0:02:42.4]} 24... Qxc1 {[%clk 0:03:46.5]} 25. g5
{[%clk 0:02:34.1]} 25... Qxg5 {[%clk 0:03:43.1]} 26. h4 {[%clk 0:02:20.3]} 26...
Qxh4+ {[%clk 0:03:39.1]} 27. Kg2 {[%clk 0:01:50.4]} 27... f5 {[%clk 0:03:38.1]}
28. Bxf5 {[%clk 0:01:48]} 28... Rxf5 {[%clk 0:03:35.5]} 29. Qg3 {[%clk
0:01:47.1]} 29... Rg5 {[%clk 0:03:31.6]} 30. Qxg5 {[%clk 0:01:44.6]} 30... Qxg5+
{[%clk 0:03:28.9]} 31. Kf1 {[%clk 0:01:44.5]} 31... Rxc2 {[%clk 0:03:26.8]} 32.
Ke1 {[%clk 0:01:43]} 32... Qc1# {[%clk 0:03:23.2]} 0-1

[Event "Live Chess"]
[Site "Chess.com"]
[Date "2024.06.01"]
[Round "-"]
[White "seasidecastle27"]
[Black "jimwad"]
[Result "1-0"]
[WhiteElo "1951"]
[BlackElo "1217"]
[TimeControl "300"]
[EndTime "9:45:56 PDT"]
[Termination "seasidecastle27 won on time"]

1. d4 {[%clk 0:04:57.7]} 1... d5 {[%clk 0:04:58.6]} 2. Nf3 {[%clk 0:04:56.7]}
2... Nf6 {[%clk 0:04:57.2]} 3. Bf4 {[%clk 0:04:55.2]} 3... Bf5 {[%clk
0:04:55.5]} 4. e3 {[%clk 0:04:54.4]} 4... Nc6 {[%clk 0:04:54.3]} 5. Bd3 {[%clk
0:04:53]} 5... Bxd3 {[%clk 0:04:52.2]} 6. Qxd3 {[%clk 0:04:51.5]} 6... e6 {[%clk
0:04:51.6]} 7. c3 {[%clk 0:04:50.4]} 7... Bd6 {[%clk 0:04:47.9]} 8. Bg3 {[%clk
0:04:48.8]} 8... Bxg3 {[%clk 0:04:46.2]} 9. hxg3 {[%clk 0:04:47.4]} 9... h6
{[%clk 0:04:44.2]} 10. Nbd2 {[%clk 0:04:44.4]} 10... Qe7 {[%clk 0:04:37]} 11.
O-O-O {[%clk 0:04:42.6]} 11... O-O-O {[%clk 0:04:35.2]} 12. e4 {[%clk
0:04:38.6]} 12... Nxe4 {[%clk 0:04:24.3]} 13. Nxe4 {[%clk 0:04:37.3]} 13... dxe4
{[%clk 0:04:22.3]} 14. Qxe4 {[%clk 0:04:36.2]} 14... Kb8 {[%clk 0:04:14.4]} 15.
Rhe1 {[%clk 0:04:34.4]} 15... Rhe8 {[%clk 0:04:00.7]} 16. Qg4 {[%clk 0:04:16.4]}
16... Qf6 {[%clk 0:03:53.2]} 17. Qe4 {[%clk 0:03:58.3]} 17... Ne7 {[%clk
0:03:41.8]} 18. Ne5 {[%clk 0:03:45.4]} 18... Qxf2 {[%clk 0:03:24.4]} 19. Rf1
{[%clk 0:03:38.7]} 19... Qxg3 {[%clk 0:03:20.5]} 20. Rxf7 {[%clk 0:03:32.9]}
20... Qg5+ {[%clk 0:03:08.7]} 21. Kb1 {[%clk 0:03:28.8]} 21... Rd5 {[%clk
0:02:46.6]} 22. Rdf1 {[%clk 0:03:20.4]} 22... a6 {[%clk 0:02:23]} 23. c4 {[%clk
0:02:42.6]} 23... Rdd8 {[%clk 0:02:14.2]} 24. c5 {[%clk 0:02:31.3]} 24... Nd5
{[%clk 0:02:01.9]} 25. c6 {[%clk 0:02:23.1]} 25... b6 {[%clk 0:01:51.7]} 26. Qd3
{[%clk 0:02:01.5]} 26... Ka7 {[%clk 0:01:38.1]} 27. Qc2 {[%clk 0:01:23.8]} 27...
Re7 {[%clk 0:01:28]} 28. Rxe7 {[%clk 0:01:16.1]} 28... Nxe7 {[%clk 0:01:19.2]}
29. Nf7 {[%clk 0:01:04.8]} 29... Qd5 {[%clk 0:01:07.6]} 30. Nxd8 {[%clk
0:01:02]} 30... Qxd8 {[%clk 0:01:06.6]} 31. Rd1 {[%clk 0:00:58.8]} 31... Qd5
{[%clk 0:01:01.7]} 32. Qf2 {[%clk 0:00:52.9]} 32... Nxc6 {[%clk 0:00:57.5]} 33.
Qf7 {[%clk 0:00:50.7]} 33... Qd6 {[%clk 0:00:41.9]} 34. Qxg7 {[%clk 0:00:48.2]}
34... Kb7 {[%clk 0:00:34.9]} 35. g4 {[%clk 0:00:45.9]} 35... Qf4 {[%clk
0:00:28]} 36. d5 {[%clk 0:00:34.4]} 36... exd5 {[%clk 0:00:22.5]} 37. Rc1 {[%clk
0:00:30.9]} 37... Qe4+ {[%clk 0:00:19.4]} 38. Ka1 {[%clk 0:00:28]} 38... Nb4
{[%clk 0:00:18.2]} 39. Qc3 {[%clk 0:00:21.8]} 39... Qc4 {[%clk 0:00:15.1]} 40.
Qxc4 {[%clk 0:00:20.3]} 40... dxc4 {[%clk 0:00:12.3]} 41. Rxc4 {[%clk
0:00:19.4]} 41... Nc6 {[%clk 0:00:10.9]} 42. Rf4 {[%clk 0:00:18.5]} 42... Ne5
{[%clk 0:00:08]} 43. Re4 {[%clk 0:00:15.7]} 43... Nf3 {[%clk 0:00:05.3]} 44. Re6
{[%clk 0:00:14.2]} 44... Ng5 {[%clk 0:00:02]} 45. Rxh6 {[%clk 0:00:12.6]} 45...
Nf7 {[%clk 0:00:01]} 46. Rf6 {[%clk 0:00:11.1]} 1-0

[Event "Live Chess"]
[Site "Chess.com"]
[Date "2024.06.01"]
[Round "-"]
[White "Yegorych"]
[Black "Leovip"]
[Result "1-0"]
[WhiteElo "1623"]
[BlackElo "1711"]
[TimeControl "300"]
[EndTime "9:45:57 PDT"]
[Termination "Yegorych won by checkmate"]

1. d4 {[%clk 0:04:54.7]} 1... d5 {[%clk 0:04:58.9]} 2. c4 {[%clk 0:04:53.4]}
2... dxc4 {[%clk 0:04:57.1]} 3. Nc3 {[%clk 0:04:52]} 3... c6 {[%clk 0:04:52.3]}
4. e4 {[%clk 0:04:48.5]} 4... b5 {[%clk 0:04:51]} 5. e5 {[%clk 0:04:25]} 5... e6
{[%clk 0:04:43.3]} 6. Qf3 {[%clk 0:04:19.9]} 6... Qb6 {[%clk 0:04:35.1]} 7. Be3
{[%clk 0:04:10.5]} 7... Qb7 {[%clk 0:04:27]} 8. g3 {[%clk 0:03:55.1]} 8... a6
{[%clk 0:04:21.5]} 9. Bg2 {[%clk 0:03:53]} 9... Ne7 {[%clk 0:04:15.2]} 10. Nge2
{[%clk 0:03:50.7]} 10... Nd5 {[%clk 0:04:12.8]} 11. O-O {[%clk 0:03:40.4]} 11...
Nd7 {[%clk 0:03:57.6]} 12. Rab1 {[%clk 0:03:22.8]} 12... g6 {[%clk 0:03:46.6]}
13. Nxd5 {[%clk 0:03:07.1]} 13... cxd5 {[%clk 0:03:44]} 14. b3 {[%clk
0:03:04.8]} 14... Nb6 {[%clk 0:03:33.5]} 15. Rfc1 {[%clk 0:02:54.6]} 15... cxb3
{[%clk 0:03:26.1]} 16. axb3 {[%clk 0:02:44.3]} 16... Bg7 {[%clk 0:03:24.5]} 17.
Rc2 {[%clk 0:02:26.6]} 17... Bd7 {[%clk 0:03:16.5]} 18. Rbc1 {[%clk 0:02:18]}
18... Rc8 {[%clk 0:03:13.8]} 19. Bg5 {[%clk 0:02:01.8]} 19... O-O {[%clk
0:03:09.5]} 20. Bf6 {[%clk 0:02:00.3]} 20... Rxc2 {[%clk 0:03:00.6]} 21. Rxc2
{[%clk 0:01:58.7]} 21... Rc8 {[%clk 0:02:58.7]} 22. Rxc8+ {[%clk 0:01:51.4]}
22... Qxc8 {[%clk 0:02:56.2]} 23. Bxg7 {[%clk 0:01:50.3]} 23... Kxg7 {[%clk
0:02:54.5]} 24. Qf6+ {[%clk 0:01:45.8]} 24... Kg8 {[%clk 0:02:52.9]} 25. Nf4
{[%clk 0:01:37.1]} 25... Qe8 {[%clk 0:02:29.2]} 26. Qg5 {[%clk 0:01:25.6]} 26...
Nc8 {[%clk 0:02:23.4]} 27. Nh5 {[%clk 0:01:23]} 27... Qe7 {[%clk 0:02:15.6]} 28.
Nf6+ {[%clk 0:01:20.8]} 28... Kg7 {[%clk 0:02:10.7]} 29. Nh5+ {[%clk 0:01:17]}
29... Kh8 {[%clk 0:02:03.1]} 30. Nf6 {[%clk 0:01:11.6]} 30... Bc6 {[%clk
0:01:56.8]} 31. Qh6 {[%clk 0:01:07.7]} 31... Qxf6 {[%clk 0:01:30.7]} 32. exf6
{[%clk 0:01:07.6]} 32... Nd6 {[%clk 0:01:24.3]} 33. Qg7# {[%clk 0:01:06.2]} 1-0

[Event "Live Chess"]
[Site "Chess.com"]
[Date "2024.06.01"]
[Round "-"]
[White "jumush"]
[Black "Dhaydon19"]
[Result "0-1"]
[WhiteElo "1740"]
[BlackElo "2699"]
[TimeControl "300"]
[EndTime "9:46:00 PDT"]
[Termination "Dhaydon19 won by resignation"]

1. e4 {[%clk 0:04:56.3]} 1... c6 {[%clk 0:04:59.7]} 2. d4 {[%clk 0:04:54]} 2...
d5 {[%clk 0:04:57.9]} 3. exd5 {[%clk 0:04:49.4]} 3... cxd5 {[%clk 0:04:57.1]} 4.
Nf3 {[%clk 0:04:46.5]} 4... Nf6 {[%clk 0:04:56.8]} 5. Ne5 {[%clk 0:04:44.2]}
5... Nc6 {[%clk 0:04:56.5]} 6. Bb5 {[%clk 0:04:41.5]} 6... Bd7 {[%clk
0:04:55.2]} 7. Nxd7 {[%clk 0:04:39.4]} 7... Qxd7 {[%clk 0:04:54.1]} 8. c3 {[%clk
0:04:37.4]} 8... e6 {[%clk 0:04:53.1]} 9. O-O {[%clk 0:04:35]} 9... Bd6 {[%clk
0:04:52.7]} 10. Re1 {[%clk 0:04:31.6]} 10... Qc7 {[%clk 0:04:48.3]} 11. h3
{[%clk 0:04:27.9]} 11... h5 {[%clk 0:04:46.1]} 12. Nd2 {[%clk 0:04:23.8]} 12...
g5 {[%clk 0:04:42.7]} 13. Nf3 {[%clk 0:04:11.7]} 13... g4 {[%clk 0:04:40.2]} 14.
hxg4 {[%clk 0:04:09.3]} 14... hxg4 {[%clk 0:04:39.1]} 15. Ne5 {[%clk 0:04:07.3]}
15... Bxe5 {[%clk 0:04:38.4]} 16. dxe5 {[%clk 0:04:05.4]} 16... Ne4 {[%clk
0:04:36.8]} 17. Bf4 {[%clk 0:03:56.7]} 17... g3 {[%clk 0:04:32.1]} 18. fxg3
{[%clk 0:03:50.5]} 18... Qb6+ {[%clk 0:04:29.9]} 0-1

[Event "Live Chess"]
[Site "Chess.com"]
[Date "2024.06.01"]
[Round "-"]
[White "A3ndrey9"]
[Black "grillage"]
[Result "0-1"]
[WhiteElo "1276"]
[BlackElo "1911"]
[TimeControl "300"]
[EndTime "9:46:20 PDT"]
[Termination "grillage won by resignation"]

1. Nf3 {[%clk 0:04:57.3]} 1... Nf6 {[%clk 0:04:57.2]} 2. d4 {[%clk 0:04:57.2]}
2... e6 {[%clk 0:04:54.3]} 3. c4 {[%clk 0:04:56.4]} 3... Bb4+ {[%clk 0:04:51.9]}
4. Bd2 {[%clk 0:04:54.7]} 4... Bxd2+ {[%clk 0:04:50.9]} 5. Qxd2 {[%clk
0:04:53.7]} 5... d6 {[%clk 0:04:50.2]} 6. Nc3 {[%clk 0:04:52.9]} 6... Qe7 {[%clk
0:04:46.7]} 7. g3 {[%clk 0:04:51.9]} 7... e5 {[%clk 0:04:44.9]} 8. dxe5 {[%clk
0:04:48.9]} 8... dxe5 {[%clk 0:04:43.6]} 9. Nd5 {[%clk 0:04:47.5]} 9... Nxd5
{[%clk 0:04:38]} 10. Qxd5 {[%clk 0:04:45.5]} 10... Nd7 {[%clk 0:04:26.4]} 11.
Bh3 {[%clk 0:04:37.4]} 11... c6 {[%clk 0:04:14.2]} 12. Bxd7+ {[%clk 0:04:33.1]}
12... Bxd7 {[%clk 0:04:10.6]} 13. Qxe5 {[%clk 0:04:30.4]} 13... Be6 {[%clk
0:04:09.1]} 14. Qxg7 {[%clk 0:04:23.5]} 14... O-O-O {[%clk 0:04:05.3]} 15. O-O
{[%clk 0:04:11.3]} 15... h5 {[%clk 0:03:40.6]} 16. Qg5 {[%clk 0:03:51.2]} 16...
f6 {[%clk 0:03:30.7]} 17. Qf4 {[%clk 0:03:32.8]} 17... Rdg8 {[%clk 0:03:23]} 18.
Nh4 {[%clk 0:03:28.5]} 18... Rg4 {[%clk 0:03:10.6]} 19. Nf5 {[%clk 0:03:07]}
19... Bxf5 {[%clk 0:02:49]} 20. Qxf5+ {[%clk 0:03:05.5]} 20... Kb8 {[%clk
0:02:46.6]} 21. e3 {[%clk 0:02:43.9]} 21... Rxc4 {[%clk 0:02:42.3]} 22. Rac1
{[%clk 0:02:38.4]} 22... Re4 {[%clk 0:02:28.3]} 23. Rfd1 {[%clk 0:02:30.5]}
23... Re6 {[%clk 0:02:16.8]} 24. Qc5 {[%clk 0:02:23]} 24... Qc7 {[%clk
0:02:01.6]} 25. b4 {[%clk 0:02:09.5]} 25... h4 {[%clk 0:01:57.5]} 26. b5 {[%clk
0:02:07.4]} 26... hxg3 {[%clk 0:01:55.4]} 27. bxc6 {[%clk 0:02:04.2]} 27... Rxc6
{[%clk 0:01:49.2]} 28. Qa3 {[%clk 0:01:10]} 28... gxf2+ {[%clk 0:01:47.1]} 29.
Kxf2 {[%clk 0:01:08.2]} 29... Qxh2+ {[%clk 0:01:26.3]} 30. Kf3 {[%clk
0:00:56.3]} 30... Rh3+ {[%clk 0:01:19.9]} 31. Ke4 {[%clk 0:00:53.8]} 31... Qe5+
{[%clk 0:01:12.6]} 32. Kd3 {[%clk 0:00:40.7]} 32... Rxe3+ {[%clk 0:01:10.9]} 33.
Kd2 {[%clk 0:00:39.6]} 33... Rxa3 {[%clk 0:00:51.9]} 34. Rxc6 {[%clk 0:00:36.5]}
34... bxc6 {[%clk 0:00:49.7]} 35. Rb1+ {[%clk 0:00:35.8]} 35... Kc7 {[%clk
0:00:48]} 0-1

[Event "Live Chess"]
[Site "Chess.com"]
[Date "2024.06.01"]
[Round "-"]
[White "Ksenia_2013"]
[Black "peteopeteo"]
[Result "0-1"]
[WhiteElo "723"]
[BlackElo "1622"]
[TimeControl "300"]
[EndTime "9:46:23 PDT"]
[Termination "peteopeteo won by checkmate"]

1. e4 {[%clk 0:04:57.1]} 1... c6 {[%clk 0:04:59]} 2. d4 {[%clk 0:04:54.2]} 2...
d5 {[%clk 0:04:57.9]} 3. e5 {[%clk 0:04:50.9]} 3... Bf5 {[%clk 0:04:51.2]} 4.
Nf3 {[%clk 0:04:46]} 4... e6 {[%clk 0:04:49.3]} 5. Bd3 {[%clk 0:04:43.6]} 5...
Bxd3 {[%clk 0:04:48.3]} 6. cxd3 {[%clk 0:04:41.6]} 6... Bb4+ {[%clk 0:04:45.9]}
7. Nc3 {[%clk 0:04:39]} 7... Ne7 {[%clk 0:04:42.9]} 8. O-O {[%clk 0:04:37.6]}
8... Nf5 {[%clk 0:04:40.2]} 9. a3 {[%clk 0:04:32.7]} 9... Ba5 {[%clk 0:04:38.7]}
10. b4 {[%clk 0:04:30.9]} 10... Bb6 {[%clk 0:04:38]} 11. Bg5 {[%clk 0:04:27.8]}
11... Qd7 {[%clk 0:04:33.3]} 12. Nh4 {[%clk 0:04:18.7]} 12... Nxd4 {[%clk
0:04:28.1]} 13. Ne2 {[%clk 0:04:07.5]} 13... Nxe2+ {[%clk 0:04:21.8]} 14. Qxe2
{[%clk 0:04:05.6]} 14... Bd8 {[%clk 0:04:21.5]} 15. Bxd8 {[%clk 0:04:03.1]}
15... Qxd8 {[%clk 0:04:21.4]} 16. Qf3 {[%clk 0:04:00.9]} 16... Qxh4 {[%clk
0:04:19.6]} 17. d4 {[%clk 0:03:43]} 17... Qxd4 {[%clk 0:04:16.8]} 18. Rfd1
{[%clk 0:03:39.1]} 18... Qe4 {[%clk 0:04:15.1]} 19. Qxe4 {[%clk 0:03:32.2]}
19... dxe4 {[%clk 0:04:15]} 20. Rd2 {[%clk 0:03:31.2]} 20... O-O {[%clk
0:04:12.9]} 21. f3 {[%clk 0:03:27.1]} 21... exf3 {[%clk 0:04:11.7]} 22. gxf3
{[%clk 0:03:26]} 22... Na6 {[%clk 0:04:11]} 23. Kf2 {[%clk 0:03:24.4]} 23...
Rad8 {[%clk 0:04:10.5]} 24. Rxd8 {[%clk 0:03:22.5]} 24... Rxd8 {[%clk
0:04:10.4]} 25. Ke2 {[%clk 0:03:20.8]} 25... Nc7 {[%clk 0:04:09.6]} 26. a4
{[%clk 0:03:17.2]} 26... Nd5 {[%clk 0:04:08.8]} 27. Kd3 {[%clk 0:03:14.8]} 27...
Nxb4+ {[%clk 0:04:07.8]} 28. Kc4 {[%clk 0:03:12.7]} 28... Nd5 {[%clk 0:04:07]}
29. Rb1 {[%clk 0:03:10]} 29... b6 {[%clk 0:04:03.8]} 30. f4 {[%clk 0:03:02.3]}
30... Ne3+ {[%clk 0:04:01]} 31. Kc3 {[%clk 0:02:58.3]} 31... Rd5 {[%clk
0:03:52.7]} 32. a5 {[%clk 0:02:51.9]} 32... Rxa5 {[%clk 0:03:51.6]} 33. Kd3
{[%clk 0:02:48.2]} 33... Nd5 {[%clk 0:03:48.9]} 34. Kd4 {[%clk 0:02:45.1]} 34...
Nxf4 {[%clk 0:03:47.1]} 35. Rd1 {[%clk 0:02:42.7]} 35... Rd5+ {[%clk 0:03:44.8]}
36. Kc3 {[%clk 0:02:40.2]} 36... Rxd1 {[%clk 0:03:44]} 37. Kc2 {[%clk
0:02:38.8]} 37... Rd5 {[%clk 0:03:42.7]} 38. Kc3 {[%clk 0:02:37.3]} 38... Rxe5
{[%clk 0:03:42.1]} 39. Kd4 {[%clk 0:02:35.5]} 39... Re2 {[%clk 0:03:41.3]} 40.
Kc3 {[%clk 0:02:33.8]} 40... Rxh2 {[%clk 0:03:40.4]} 41. Kd4 {[%clk 0:02:32.4]}
41... Re2 {[%clk 0:03:40.2]} 42. Kc3 {[%clk 0:02:30.9]} 42... h5 {[%clk
0:03:39.6]} 43. Kd4 {[%clk 0:02:29.3]} 43... h4 {[%clk 0:03:39.5]} 44. Kc3
{[%clk 0:02:28.3]} 44... h3 {[%clk 0:03:39.4]} 45. Kd4 {[%clk 0:02:27.5]} 45...
h2 {[%clk 0:03:39.3]} 46. Kc3 {[%clk 0:02:26.5]} 46... h1=R {[%clk 0:03:38.4]}
47. Kc4 {[%clk 0:02:24.9]} 47... Rd1 {[%clk 0:03:37.6]} 48. Kb4 {[%clk
0:02:23.1]} 48... Rc2 {[%clk 0:03:37]} 49. Ka4 {[%clk 0:02:21.3]} 49... Rb1
{[%clk 0:03:36.1]} 50. Ka3 {[%clk 0:02:19.8]} 50... Rc5 {[%clk 0:03:35.1]} 51.
Ka4 {[%clk 0:02:17.9]} 51... Ra5# {[%clk 0:03:33.4]} 0-1

[Event "Live Chess"]
[Site "Chess.com"]
[Date "2024.06.01"]
[Round "-"]
[White "YrrriKharkiv"]
[Black "MellowAesthetic"]
[Result "1-0"]
[WhiteElo "2125"]
[BlackElo "2067"]
[TimeControl "300"]
[EndTime "9:46:38 PDT"]
[Termination "YrrriKharkiv won on time"]

1. d4 {[%clk 0:04:52.4]} 1... Nf6 {[%clk 0:04:58.1]} 2. Bf4 {[%clk 0:04:49.9]}
2... g6 {[%clk 0:04:56.9]} 3. Nc3 {[%clk 0:04:46.1]} 3... d5 {[%clk 0:04:55.5]}
4. e3 {[%clk 0:04:38.2]} 4... Bg7 {[%clk 0:04:54.5]} 5. Nf3 {[%clk 0:04:34.7]}
5... O-O {[%clk 0:04:52.6]} 6. Be2 {[%clk 0:04:31.9]} 6... c5 {[%clk 0:04:51.4]}
7. Ne5 {[%clk 0:04:26]} 7... cxd4 {[%clk 0:04:24.4]} 8. exd4 {[%clk 0:04:22.4]}
8... Qb6 {[%clk 0:04:22]} 9. Rb1 {[%clk 0:04:17.9]} 9... Nc6 {[%clk 0:04:19.1]}
10. Nxc6 {[%clk 0:04:11.9]} 10... bxc6 {[%clk 0:04:14.2]} 11. O-O {[%clk
0:04:07.9]} 11... Nd7 {[%clk 0:03:29.8]} 12. Be3 {[%clk 0:03:58.6]} 12... a5
{[%clk 0:03:23.7]} 13. Na4 {[%clk 0:03:55.5]} 13... Qc7 {[%clk 0:03:15.1]} 14.
c4 {[%clk 0:03:44.9]} 14... Ba6 {[%clk 0:03:09.8]} 15. Rc1 {[%clk 0:03:37]}
15... dxc4 {[%clk 0:02:17.3]} 16. Bxc4 {[%clk 0:03:34.9]} 16... Bxc4 {[%clk
0:02:16.6]} 17. Rxc4 {[%clk 0:03:33.2]} 17... Nb6 {[%clk 0:02:16]} 18. Nxb6
{[%clk 0:03:27.8]} 18... Qxb6 {[%clk 0:02:15.9]} 19. Qc2 {[%clk 0:03:26.7]}
19... Rfc8 {[%clk 0:01:34.3]} 20. Rc1 {[%clk 0:03:21.6]} 20... Rab8 {[%clk
0:00:57.3]} 21. b3 {[%clk 0:03:18.3]} 21... h5 {[%clk 0:00:39.5]} 22. h3 {[%clk
0:03:03.3]} 22... Qb5 {[%clk 0:00:28.7]} 23. Rc5 {[%clk 0:02:55.5]} 23... Qb4
{[%clk 0:00:26.1]} 24. Rxc6 {[%clk 0:02:50.3]} 24... Rxc6 {[%clk 0:00:24.2]} 25.
Qxc6 {[%clk 0:02:49.9]} 25... Bxd4 {[%clk 0:00:23.8]} 26. Bxd4 {[%clk
0:02:25.1]} 26... Qxd4 {[%clk 0:00:23.7]} 27. Qc3 {[%clk 0:02:20]} 27... Qf4
{[%clk 0:00:16.7]} 28. Qc7 {[%clk 0:02:14.1]} 28... Qxc7 {[%clk 0:00:11.1]} 29.
Rxc7 {[%clk 0:02:13.4]} 29... e6 {[%clk 0:00:10.6]} 30. Rc5 {[%clk 0:02:08.5]}
30... Ra8 {[%clk 0:00:09.7]} 31. Rc4 {[%clk 0:02:06.3]} 31... Kg7 {[%clk
0:00:08.7]} 32. Ra4 {[%clk 0:02:05.9]} 32... Kf6 {[%clk 0:00:07.2]} 33. b4
{[%clk 0:02:05.3]} 33... Ke5 {[%clk 0:00:06.6]} 34. bxa5 {[%clk 0:02:01]} 34...
Kd5 {[%clk 0:00:05.8]} 35. a6 {[%clk 0:02:00.1]} 35... Kc6 {[%clk 0:00:05.2]}
36. g3 {[%clk 0:01:51.2]} 36... Kb6 {[%clk 0:00:04.6]} 37. Kg2 {[%clk
0:01:47.9]} 37... Rxa6 {[%clk 0:00:04.2]} 38. Rb4+ {[%clk 0:01:47.1]} 38... Kc5
{[%clk 0:00:03.7]} 39. Rb2 {[%clk 0:01:46.5]} 39... Kc4 {[%clk 0:00:03.3]} 40.
Kf3 {[%clk 0:01:43.4]} 40... Kc3 {[%clk 0:00:03.2]} 41. Re2 {[%clk 0:01:41.8]}
41... Ra4 {[%clk 0:00:03.1]} 42. h4 {[%clk 0:01:39.4]} 42... f6 {[%clk
0:00:02.4]} 43. Re3+ {[%clk 0:01:38.6]} 43... Kd4 {[%clk 0:00:01.3]} 44. Re4+
{[%clk 0:01:37.6]} 1-0